bitfinex/quotes_BTCUSD_20250331
["timestamp","ask_amount","ask_price","bid_price","bid_amount"]
[1743452864265,0.0001684,82872.0,82871.0,0.81387409]
[1743452866240,0.0001684,82872.0,82871.0,0.09036623]
[1743452866692,0.0001684,82872.0,82871.0,0.00826623]
[1743452866693,0.2415044,82872.0,82871.0,0.00826623]
[1743452866881,0.0001684,82872.0,82871.0,0.00826623]
[1743452867097,0.0001684,82872.0,82871.0,0.24960423]
[1743452871165,0.00012228,82872.0,82871.0,0.24960423]
[1743452871566,0.24145828,82872.0,82871.0,0.00826623]
[1743452871807,0.25352428,82872.0,82871.0,0.00826623]
[1743452872046,0.25352428,82872.0,82871.0,0.0013368]
[1743452872267,0.25352428,82872.0,82871.0,0.00826623]
[1743452872710,0.25352428,82872.0,82871.0,0.0013368]
[1743452873342,0.25352428,82872.0,82871.0,0.0003368]
[1743452873766,0.25652428,82872.0,82871.0,0.0003368]
[1743452873971,0.27241828,82872.0,82871.0,0.0003368]
[1743452875523,0.27541828,82872.0,82871.0,0.0003368]
[1743452877430,0.68531828,82872.0,82871.0,0.0003368]
[1743452877827,0.66642428,82872.0,82871.0,0.0003368]
[1743452879674,0.38215753,82872.0,82871.0,0.0003368]
[1743452879885,0.39422353,82872.0,82871.0,0.0003368]
[1743452880108,0.63555953,82872.0,82871.0,0.0003368]
[1743452880967,0.65445364,82872.0,82871.0,0.0003368]
[1743452881170,0.65462204,82872.0,82871.0,0.0003368]
[1743452882004,0.40122004,82872.0,82871.0,0.0003368]
[1743452882227,0.38232593,82872.0,82871.0,0.2537408]
[1743452882635,0.38232593,82872.0,82871.0,0.26067023]
[1743452883146,0.0001684,82872.0,82871.0,0.26067023]
[1743452884144,0.0001684,82872.0,82871.0,0.26167023]
[1743452884530,0.0001684,82872.0,82871.0,0.26267023]
[1743452886062,0.0001684,82872.0,82871.0,0.25060423]
[1743452886319,0.0001684,82872.0,82871.0,0.00926623]
[1743452886775,0.0001684,82872.0,82871.0,0.25060423]
[1743452891645,0.0001684,82872.0,82871.0,0.26267023]
[1743452895538,0.0001684,82872.0,82871.0,0.25060423]
[1743452895723,0.0001684,82872.0,82871.0,0.26267023]
[1743452897485,0.0001684,82872.0,82871.0,0.46617409]
[1743452911117,0.0122344,82872.0,82871.0,0.00926623]
[1743452911301,0.2535704,82872.0,82871.0,0.00926623]
[1743452911557,0.2535704,82872.0,82871.0,0.0023368]
[1743452912230,0.0190627,82872.0,82871.0,0.0013368]
[1743452912450,0.0190627,82872.0,82871.0,0.2547408]
[1743452912656,0.0001684,82872.0,82871.0,0.37734466]
[1743452912859,0.0001684,82872.0,82871.0,0.46607409]
[1743452913483,0.0001684,82872.0,82871.0,0.46507409]
[1743452914852,0.0001684,82872.0,82871.0,0.46707409]
[1743452915448,0.0001684,82872.0,82871.0,0.47007409]
[1743452917528,0.241312,82881.0,82878.0,0.241317]
[1743452917735,0.241313,82880.0,82879.0,0.00688648]
[1743452917939,0.24131,82881.0,82876.0,0.012066]
[1743452918209,0.24131,82881.0,82877.0,0.00689722]
[1743452918408,0.253383,82878.0,82877.0,0.00689722]
[1743452918827,0.241325,82876.0,82872.0,0.241334]
[1743452919043,0.241325,82876.0,82873.0,0.241331]
[1743452919207,0.241322,82877.0,82873.0,0.24824969]
[1743452919411,0.241324,82876.0,82873.0,0.00691869]
[1743452921045,0.241324,82876.0,82873.0,0.24825069]
[1743452921244,0.241324,82876.0,82873.0,0.24925069]
[1743452921659,0.241324,82876.0,82873.0,0.24825069]
[1743452922094,0.241324,82876.0,82873.0,0.24925069]
[1743452923967,0.241328,82875.0,82873.0,0.00791869]
[1743452924223,0.241324,82876.0,82873.0,0.00791869]
[1743452924893,0.25339,82876.0,82873.0,0.00691869]
[1743452925037,0.241327,82875.0,82873.0,0.00691869]
[1743452925236,0.24133,82874.0,82873.0,0.001]
[1743452925424,0.25339,82876.0,82874.0,0.00691332]
[1743452925647,0.25339,82876.0,82873.0,0.00791869]
[1743452925848,0.25339,82876.0,82875.0,0.00690795]
[1743452926347,0.241332,82874.0,82871.0,0.2416738]
[1743452926550,0.241332,82874.0,82872.0,0.00692406]
[1743452926551,0.241333,82873.0,82872.0,0.00692406]
[1743452927197,0.253392,82876.0,82872.0,0.00692406]
[1743452927375,0.241326,82877.0,82873.0,0.241332]
[1743452927827,0.241325,82876.0,82874.0,0.00691332]
[1743452928174,0.0001684,82876.0,82872.0,0.241334]
[1743452928377,0.0001684,82876.0,82875.0,0.00690795]
[1743452928493,0.0001684,82876.0,82873.0,0.241332]
[1743452928700,0.0001684,82876.0,82874.0,0.00691332]
[1743452929285,0.0001684,82876.0,82874.0,0.24824232]
[1743452929468,0.0001684,82876.0,82874.0,0.00691332]
[1743452930293,0.0001684,82876.0,82874.0,0.00791332]
[1743452930511,0.0001684,82876.0,82874.0,0.24924332]
[1743452930717,0.0001684,82876.0,82875.0,0.241327]
[1743452930957,0.0001684,82876.0,82875.0,0.24823495]
[1743452932154,0.0001684,82876.0,82875.0,0.33930095]
[1743452932376,0.0001684,82876.0,82875.0,0.46290481]
[1743452950958,0.0001684,82876.0,82875.0,0.76290481]
[1743452951190,0.0001684,82876.0,82875.0,0.8716401]
[1743452951403,0.0001684,82876.0,82875.0,1.0089601]
[1743452952782,0.0001684,82876.0,82875.0,1.0129601]
[1743452953251,0.0001684,82876.0,82875.0,1.0119601]
[1743452953725,0.0001684,82876.0,82875.0,1.0169601]
[1743452955218,0.0001684,82876.0,82875.0,1.04134234]
[1743452955847,8e-07,82877.0,82876.0,0.55339]
[1743452956062,8e-07,82877.0,82876.0,0.80199386]
[1743452956245,8e-07,82877.0,82876.0,0.80789478]
[1743452956879,8e-07,82877.0,82876.0,1.22389478]
[1743452957092,8e-07,82877.0,82876.0,1.22889478]
[1743452957303,8e-07,82877.0,82876.0,1.23189478]
[1743452964869,8e-07,82877.0,82876.0,1.23223158]
[1743452985209,8e-07,82877.0,82876.0,1.26995135]
[1743452985419,8e-07,82877.0,82876.0,1.23223158]
[1743452986518,8e-07,82877.0,82876.0,1.26995768]
[1743452990376,8e-07,82877.0,82876.0,1.23223158]
[1743452990701,8e-07,82877.0,82876.0,1.26996532]
[1743452994033,0.14118259,82910.0,82909.0,0.241228]
[1743452994240,0.01454085,82932.0,82909.0,0.241228]
[1743452994241,0.390547,82917.0,82910.0,0.241225]
[1743452994443,0.241213,82915.0,82910.0,0.241225]
[1743452994660,0.241216,82914.0,82910.0,0.24694349]
[1743452994814,0.241214,82914.0,82910.0,0.25900449]
[1743452995022,0.77332257,82911.0,82910.0,0.25900449]
[1743452995227,0.77337293,82911.0,82910.0,0.25900449]
[1743452996928,0.80927293,82911.0,82910.0,0.25900449]
[1743453000513,0.75530289,82911.0,82910.0,0.25900449]
[1743453000730,0.77966129,82911.0,82910.0,0.25900449]
[1743453000963,0.75547129,82911.0,82910.0,0.25900449]
[1743453002513,0.46816728,82911.0,82910.0,0.25900449]
[1743453006870,0.46816728,82911.0,82910.0,0.38160835]
[1743453009864,0.46816728,82911.0,82910.0,0.68160835]
[1743453011634,0.46816728,82911.0,82910.0,0.70634501]
[1743453012067,0.46816728,82911.0,82910.0,0.70668161]
[1743453013032,0.46816728,82911.0,82910.0,0.68194495]
[1743453028017,0.27974186,82911.0,82910.0,0.68194495]
[1743453031743,0.27974186,82911.0,82910.0,0.00605509]
[1743453031951,0.53302486,82911.0,82910.0,0.00605509]
[1743453032609,0.55191145,82911.0,82910.0,0.00605509]
[1743453040366,0.53302486,82911.0,82910.0,0.00605509]
[1743453043855,0.55191231,82911.0,82910.0,0.00605509]
[1743453047856,0.53302486,82911.0,82910.0,0.00605509]
[1743453049617,0.65562872,82911.0,82910.0,0.00605509]
[1743453049860,0.012065,82880.0,82874.0,0.0791368]
[1743453050100,0.012065,82880.0,82874.0,0.0003368]
[1743453050101,0.253387,82877.0,82874.0,0.0003368]
[1743453050350,0.241318,82878.0,82874.0,0.2537328]
[1743453050584,0.26448881,82878.0,82874.0,0.0003368]
[1743453050818,0.02317081,82878.0,82874.0,0.2537318]
[1743453051051,0.241315,82879.0,82876.0,0.0013368]
[1743453051052,0.241321,82877.0,82876.0,0.0013368]
[1743453051279,0.241321,82877.0,82876.0,0.0003368]
[1743453051738,0.241321,82877.0,82876.0,0.0023368]
[1743453052207,0.253387,82877.0,82876.0,0.0023368]
[1743453052884,0.253387,82877.0,82876.0,0.0013368]
[1743453053083,0.253387,82877.0,82876.0,0.0003368]
[1743453053285,0.253387,82877.0,82876.0,0.0023368]
[1743453053504,0.241321,82877.0,82876.0,0.0043368]
[1743453053744,0.241321,82877.0,82876.0,0.0023368]
[1743453053946,0.244321,82877.0,82876.0,0.0023368]
[1743453054760,0.244321,82877.0,82876.0,0.0003368]
[1743453054982,0.256387,82877.0,82876.0,0.0003368]
[1743453055200,0.258387,82877.0,82876.0,0.0003368]
[1743453056328,0.005,82877.0,82876.0,0.3791268]
[1743453059209,0.005,82877.0,82876.0,0.80173066]
[1743453059401,0.241197,82920.0,82910.0,0.241225]
[1743453059707,0.27983059,82911.0,82910.0,0.253286]
[1743453060169,0.27983059,82911.0,82910.0,0.37588986]
[1743453060600,0.28183059,82911.0,82910.0,0.37588986]
[1743453060809,0.27983059,82911.0,82910.0,0.37588986]
[1743453061260,5.9e-07,82911.0,82910.0,1.17068986]
[1743453061505,1e-06,82929.0,82928.0,0.601131]
[1743453061726,1e-06,82929.0,82928.0,0.97574228]
[1743453061929,0.00010163,82929.0,82928.0,0.97574228]
[1743453064340,0.00010163,82929.0,82928.0,0.97774228]
[1743453064543,0.00010163,82929.0,82928.0,0.97974228]
[1743453065396,5.3e-07,82935.0,82934.0,0.599512]
[1743453065619,9.3e-07,82938.0,82937.0,0.553203]
[1743453065822,9.3e-07,82938.0,82937.0,0.79433428]
[1743453066028,9.3e-07,82938.0,82937.0,0.80210789]
[1743453066457,0.0001684,82947.0,82946.0,0.553176]
[1743453066682,0.0001684,82947.0,82946.0,0.79430728]
[1743453066915,0.0001684,82947.0,82946.0,0.80200854]
[1743453067136,6.811e-05,82947.0,82946.0,0.80200854]
[1743453068313,6.811e-05,82947.0,82946.0,0.80300854]
[1743453068546,6.811e-05,82947.0,82946.0,0.80500854]
[1743453070521,0.46412583,82958.0,82957.0,0.012054]
[1743453070732,0.4645894,82958.0,82957.0,0.22679813]
[1743453070963,0.4645894,82958.0,82957.0,0.36379813]
[1743453071319,0.4645894,82958.0,82957.0,0.74109813]
[1743453072585,0.4645894,82958.0,82957.0,0.74409813]
[1743453073466,0.4645894,82958.0,82957.0,0.60709813]
[1743453073696,0.4645894,82958.0,82957.0,0.61009813]
[1743453074437,0.4645894,82958.0,82957.0,0.29804413]
[1743453074652,0.4645894,82958.0,82957.0,0.27397071]
[1743453074849,0.4645894,82958.0,82957.0,0.21351671]
[1743453075694,0.4645894,82958.0,82957.0,0.13621671]
[1743453075920,0.7177284,82958.0,82957.0,0.01361285]
[1743453076134,0.7177284,82958.0,82957.0,0.006]
[1743453076345,0.73660451,82958.0,82957.0,0.006]
[1743453076952,0.012055,82950.0,82941.0,0.553188]
[1743453077166,0.012055,82950.0,82942.0,0.241132]
[1743453077374,0.012055,82950.0,82942.0,0.24886541]
[1743453078982,0.012055,82948.0,82942.0,0.00773341]
[1743453079433,0.241129,82943.0,82942.0,0.00773341]
[1743453079438,0.253185,82943.0,82942.0,0.00773341]
[1743453079899,0.012057,82934.0,82926.0,0.0791]
[1743453080147,0.241158,82933.0,82927.0,0.13045788]
[1743453080393,0.241167,82930.0,82927.0,0.00785402]
[1743453080649,0.24116,82933.0,82927.0,0.00785402]
[1743453080907,0.241162,82932.0,82926.0,0.241178]
[1743453081169,0.241162,82932.0,82928.0,0.00784598]
[1743453081378,0.241166,82931.0,82927.0,0.00785402]
[1743453081587,0.241166,82931.0,82929.0,0.00783793]
[1743453081819,0.241166,82931.0,82928.0,0.00784598]
[1743453082097,0.241166,82931.0,82930.0,0.00782989]
[1743453082336,0.26003577,82934.0,82929.0,0.00783793]
[1743453082567,0.01888077,82934.0,82930.0,0.24899589]
[1743453082799,0.26003577,82934.0,82930.0,0.00782989]
[1743453083013,0.241159,82933.0,82930.0,0.00782989]
[1743453083224,0.253222,82932.0,82925.0,0.541181]
[1743453083452,0.253222,82932.0,82931.0,0.00782185]
[1743453083654,0.241165,82931.0,82925.0,0.541181]
[1743453083873,0.241165,82931.0,82928.0,0.002]
[1743453084077,0.241165,82931.0,82928.0,0.001]
[1743453084277,0.241165,82931.0,82925.0,0.541181]
[1743453084488,0.241165,82931.0,82925.0,0.543181]
[1743453084698,0.241165,82931.0,82925.0,0.542181]
[1743453085461,0.241165,82931.0,82928.0,0.001]
[1743453086194,0.241159,82933.0,82928.0,0.001]
[1743453087140,0.241164,82931.0,82925.0,0.54218]
[1743453087542,0.241185,82924.0,82918.0,0.320299]
[1743453087769,0.241184,82924.0,82920.0,0.00010063]
[1743453087995,0.241193,82921.0,82920.0,0.00010063]
[1743453088228,0.253252,82921.0,82920.0,0.00010063]
[1743453090819,0.255252,82921.0,82920.0,0.00010063]
[1743453091063,0.27413686,82921.0,82920.0,0.00010063]
[1743453094800,0.27413686,82921.0,82920.0,0.00043723]
[1743453095723,0.57908727,82921.0,82920.0,0.00043723]
[1743453095954,0.70169113,82921.0,82920.0,0.00043723]
[1743453096284,0.012061,82911.0,82884.0,0.0491]
[1743453096528,0.012065,82878.0,82876.0,0.0834368]
[1743453096800,0.241315,82879.0,82876.0,0.0834368]
[1743453097022,0.012065,82881.0,82877.0,0.00550423]
[1743453097023,0.253374,82881.0,82877.0,0.00550423]
[1743453097264,0.012065,82881.0,82877.0,0.00550423]
[1743453097504,0.241316,82879.0,82877.0,0.00550423]
[1743453097738,0.241318,82878.0,82877.0,0.00550423]
[1743453097972,0.253383,82878.0,82877.0,0.00550423]
[1743453098484,0.27406303,82878.0,82877.0,0.00550423]
[1743453098707,0.253387,82877.0,82876.0,0.00047589]
[1743453100327,0.02068003,82878.0,82876.0,0.00047589]
[1743453100562,0.001,82877.0,82876.0,0.00047589]
[1743453100799,0.002,82877.0,82876.0,0.00047589]
[1743453101502,0.001,82877.0,82876.0,0.00047589]
[1743453101950,0.253387,82877.0,82876.0,0.00047589]
[1743453103377,0.54379656,82877.0,82876.0,0.00047589]
[1743453103621,0.88259083,82877.0,82876.0,0.00047589]
[1743453103862,1.58894983,82877.0,82876.0,0.00047589]
[1743453104071,1.58994983,82877.0,82876.0,0.00047589]
[1743453104490,1.23927483,82877.0,82876.0,0.00047589]
[1743453104961,1.19458683,82877.0,82876.0,0.00047589]
[1743453105168,0.88659083,82877.0,82876.0,0.00047589]
[1743453105581,1.02363083,82877.0,82876.0,0.00047589]
[1743453106353,1.01963083,82877.0,82876.0,0.00047589]
[1743453106764,1.02463083,82877.0,82876.0,0.00147589]
[1743453106995,1.02663083,82877.0,82876.0,0.00147589]
[1743453107248,1.02163083,82877.0,82876.0,0.00047589]
[1743453107444,1.01963083,82877.0,82876.0,0.00047589]
[1743453107650,1.02663083,82877.0,82876.0,0.00147589]
[1743453108380,1.65319083,82877.0,82876.0,0.00147589]
[1743453110924,1.67208757,82877.0,82876.0,0.00147589]
[1743453112114,1.67208757,82877.0,82876.0,8.9e-07]
[1743453113438,0.253404,82871.0,82870.0,0.0003368]
[1743453113663,0.39054871,82871.0,82870.0,0.0003368]
[1743453114188,0.52758871,82871.0,82870.0,0.0003368]
[1743453114673,0.65519257,82871.0,82870.0,0.0003368]
[1743453114869,0.65619257,82871.0,82870.0,0.0003368]
[1743453115069,0.70139441,82871.0,82870.0,0.0003368]
[1743453115657,1.03459165,82871.0,82870.0,8e-07]
[1743453116641,1.02959165,82871.0,82870.0,8e-07]
[1743453116845,1.06449165,82871.0,82870.0,8e-07]
[1743453117051,1.06949165,82871.0,82870.0,0.0010008]
[1743453117259,1.07549165,82871.0,82870.0,0.0010008]
[1743453119109,1.07549165,82871.0,82870.0,8e-07]
[1743453119289,1.11059165,82871.0,82870.0,8e-07]
[1743453120909,1.1294903,82871.0,82870.0,8e-07]
[1743453121645,1.1294903,82871.0,82870.0,0.0003376]
[1743453122020,1.9770343,82871.0,82870.0,0.0003376]
[1743453122394,2.09963816,82871.0,82870.0,6e-07]
[1743453122599,2.09963816,82871.0,82842.0,0.0832364]
[1743453122600,0.553426,82864.0,82863.0,2e-07]
[1743453122858,0.69057071,82864.0,82863.0,2e-07]
[1743453123027,0.69057071,82864.0,82842.0,0.0832364]
[1743453123028,0.253463,82852.0,82842.0,0.0832364]
[1743453123179,0.253463,82852.0,82851.0,0.00413922]
[1743453123180,0.5583487,82852.0,82851.0,0.00413922]
[1743453123782,0.57724809,82852.0,82851.0,0.00413922]
[1743453124470,0.57924809,82852.0,82851.0,0.00413922]
[1743453124894,0.58124809,82852.0,82851.0,0.00413922]
[1743453126103,0.44416809,82852.0,82851.0,0.00413922]
[1743453126543,0.19070509,82852.0,82851.0,0.37423622]
[1743453126773,0.19070509,82852.0,82851.0,0.13283922]
[1743453126774,0.02289939,82852.0,82851.0,0.13283922]
[1743453126994,0.02289939,82852.0,82851.0,0.13848305]
[1743453127233,0.26429339,82852.0,82851.0,0.13848305]
[1743453128529,0.02289939,82852.0,82851.0,0.13848305]
[1743453128766,0.02289939,82852.0,82851.0,0.39194905]
[1743453129704,0.004,82852.0,82851.0,0.39194905]
[1743453129921,0.004,82852.0,82851.0,0.51455291]
[1743453130618,0.002,82852.0,82851.0,0.51455291]
[1743453130856,0.62676,82859.0,82858.0,0.334844]
[1743453131316,0.62676,82859.0,82858.0,0.34045024]
[1743453133070,0.62676,82859.0,82858.0,0.38905024]
[1743453133695,0.62776,82859.0,82858.0,0.38905024]
[1743453134340,0.62976,82859.0,82858.0,0.38905024]
[1743453136048,0.62976,82859.0,82858.0,0.37698224]
[1743453139493,0.62976,82859.0,82858.0,0.38905024]
[1743453139694,0.62976,82859.0,82858.0,0.13560624]
[1743453140587,0.871133,82859.0,82858.0,0.13560624]
[1743453142120,0.62976,82859.0,82858.0,0.13560624]
[1743453142680,0.871133,82859.0,82858.0,0.13560624]
[1743453144065,0.62976,82859.0,82858.0,0.13560624]
[1743453144292,0.62976,82859.0,82858.0,0.37698224]
[1743453144757,0.62976,82859.0,82858.0,0.38905024]
[1743453145828,0.62976,82859.0,82858.0,0.37698224]
[1743453146231,0.62976,82859.0,82858.0,0.37731924]
[1743453146665,0.241365,82862.0,82860.0,0.24137]
[1743453146869,0.241365,82862.0,82859.0,0.241372]
[1743453147082,0.241369,82861.0,82858.0,0.383781]
[1743453147292,0.241365,82862.0,82859.0,0.241373]
[1743453147836,0.2415305,82863.0,82858.0,0.130337]
[1743453147837,0.24137,82861.0,82858.0,0.130337]
[1743453148082,0.012068,82861.0,82858.0,0.130337]
[1743453148271,0.241373,82859.0,82858.0,0.130337]
[1743453149067,0.24137,82860.0,82858.0,0.130337]
[1743453151118,0.24437,82860.0,82858.0,0.130337]
[1743453151272,0.003,82860.0,82858.0,0.371713]
[1743453151483,0.003,82860.0,82858.0,0.130337]
[1743453151717,0.244371,82860.0,82858.0,0.130337]
[1743453151881,0.003,82860.0,82858.0,0.130337]
[1743453152113,0.003,82860.0,82858.0,0.371713]
[1743453152665,0.244371,82860.0,82858.0,0.130337]
[1743453152867,0.003,82860.0,82858.0,0.371712]
[1743453153465,0.003,82860.0,82859.0,0.00560087]
[1743453153888,0.003,82860.0,82859.0,0.241373]
[1743453154097,0.003,82860.0,82859.0,0.24697387]
[1743453154450,0.001,82860.0,82859.0,0.25904187]
[1743453154648,0.002,82860.0,82859.0,0.25904187]
[1743453155067,0.003,82860.0,82859.0,0.25904187]
[1743453158956,0.0031685,82860.0,82859.0,0.25904187]
[1743453160323,0.012067,82867.0,82863.0,0.241361]
[1743453160443,0.241351,82867.0,82862.0,0.012068]
[1743453160665,0.241353,82866.0,82863.0,0.24694139]
[1743453160872,0.241351,82867.0,82864.0,0.241357]
[1743453161078,0.241351,82867.0,82863.0,0.24694139]
[1743453161279,0.241353,82866.0,82865.0,0.00556865]
[1743453161479,0.241353,82866.0,82864.0,0.00557402]
[1743453161678,0.241353,82866.0,82865.0,0.00556865]
[1743453162142,0.241353,82866.0,82863.0,0.241362]
[1743453162317,0.241353,82866.0,82865.0,0.00556865]
[1743453162498,0.241353,82866.0,82864.0,0.00557402]
[1743453162699,0.241353,82866.0,82865.0,0.00556865]
[1743453162894,0.248351,82867.0,82865.0,0.00556865]
[1743453163099,0.241351,82867.0,82864.0,0.241357]
[1743453163311,0.244351,82867.0,82866.0,0.00556328]
[1743453163535,0.26024015,82869.0,82866.0,0.241353]
[1743453163743,0.241348,82868.0,82866.0,0.00556328]
[1743453164574,0.003,82867.0,82866.0,0.00556328]
[1743453164769,0.24435,82867.0,82866.0,0.00556328]
[1743453165094,0.24435,82867.0,82864.0,0.253424]
[1743453165095,0.003,82867.0,82864.0,0.253424]
[1743453165281,0.003,82867.0,82866.0,0.00556328]
[1743453165504,0.003,82867.0,82865.0,0.24692465]
[1743453165726,0.003,82867.0,82866.0,0.00556328]
[1743453166063,0.241348,82868.0,82866.0,0.00556328]
[1743453166269,0.244348,82868.0,82866.0,0.00556328]
[1743453166461,0.241348,82868.0,82866.0,0.00556328]
[1743453166872,0.003,82867.0,82866.0,0.00556328]
[1743453167099,0.003,82867.0,82866.0,0.33878328]
[1743453167516,0.003,82867.0,82866.0,0.38698328]
[1743453167716,0.004,82868.0,82867.0,0.253417]
[1743453167916,0.0001685,82871.0,82870.0,0.253408]
[1743453168372,0.0001685,82871.0,82870.0,0.33874981]
[1743453170414,0.0041685,82871.0,82870.0,0.33874981]
[1743453170615,0.0091685,82871.0,82870.0,0.33874981]
[1743453171880,0.64402376,82877.0,82874.0,0.241329]
[1743453172074,0.241324,82876.0,82873.0,0.241333]
[1743453172312,0.241324,82876.0,82875.0,0.00551497]
[1743453172492,0.64402376,82877.0,82874.0,0.24685033]
[1743453172647,0.241325,82876.0,82875.0,0.00551497]
[1743453172841,0.241325,82876.0,82873.0,0.241333]
[1743453173065,0.241325,82876.0,82874.0,0.00552033]
[1743453173276,0.245325,82876.0,82874.0,0.00652033]
[1743453173673,0.241327,82875.0,82874.0,0.00552033]
[1743453174034,0.241327,82875.0,82873.0,0.001]
[1743453174269,0.021066,82876.0,82873.0,0.001]
[1743453174270,0.017066,82876.0,82874.0,0.00552033]
[1743453174485,0.009,82876.0,82874.0,0.00552033]
[1743453174881,0.004,82876.0,82874.0,0.00552033]
[1743453175083,0.245324,82876.0,82874.0,0.00552033]
[1743453176550,0.249324,82876.0,82874.0,0.00552033]
[1743453176771,0.245324,82876.0,82874.0,0.00552033]
[1743453179498,0.245324,82876.0,82873.0,0.23685133]
[1743453179717,0.241329,82875.0,82872.0,0.241335]
[1743453179845,0.241329,82875.0,82873.0,0.241332]
[1743453180050,0.245324,82876.0,82874.0,0.241329]
[1743453180256,0.241327,82875.0,82871.0,0.253404]
[1743453180481,0.241327,82875.0,82872.0,0.241336]
[1743453181326,0.265531,82874.0,82872.0,0.241336]
[1743453181456,0.0242,82874.0,82872.0,0.241335]
[1743453181669,0.0242,82874.0,82871.0,0.012066]
[1743453182518,0.241336,82872.0,82870.0,0.0798]
[1743453183054,0.241338,82871.0,82870.0,0.0798]
[1743453183871,0.24135,82867.0,82866.0,0.000337]
[1743453184107,0.43576355,82867.0,82866.0,0.000337]
[1743453184326,0.59346741,82867.0,82866.0,0.000337]
[1743453186317,0.59646741,82867.0,82866.0,0.000337]
[1743453186564,0.60146741,82867.0,82866.0,0.000337]
[1743453186826,0.59846741,82867.0,82866.0,0.000337]
[1743453187075,0.62712453,82867.0,82866.0,0.001337]
[1743453190593,0.59202453,82867.0,82866.0,0.001337]
[1743453190800,0.4312227,82867.0,82866.0,0.001337]
[1743453191261,0.4554227,82867.0,82866.0,0.001337]
[1743453193956,0.47431798,82867.0,82866.0,0.001337]
[1743453200317,0.4554227,82867.0,82866.0,0.001337]
[1743453203643,0.47431793,82867.0,82866.0,0.001337]
[1743453205972,0.15645747,82867.0,82866.0,0.001337]
[1743453206203,0.16852447,82867.0,82866.0,0.001337]
[1743453206830,0.16869297,82867.0,82866.0,0.001337]
[1743453209426,0.14979774,82867.0,82866.0,0.001337]
[1743453223750,0.0001685,82867.0,82866.0,0.001337]
[1743453223987,0.2415185,82867.0,82866.0,0.00830184]
[1743453225631,0.2535855,82867.0,82866.0,0.00830184]
[1743453225832,0.2535855,82867.0,82866.0,0.001337]
[1743453230863,0.2535855,82867.0,82866.0,0.00830184]
[1743453231514,0.27248115,82867.0,82866.0,0.00830184]
[1743453237983,0.2535855,82867.0,82866.0,0.00830184]
[1743453240903,0.27248082,82867.0,82866.0,0.00830184]
[1743453241140,0.01906382,82867.0,82866.0,0.26172184]
[1743453241354,0.01906382,82867.0,82866.0,0.33872184]
[1743453242041,0.01906382,82867.0,82866.0,0.38652184]
[1743453242419,0.02306382,82867.0,82866.0,0.38652184]
[1743453242828,0.01906382,82867.0,82866.0,0.38652184]
[1743453243171,0.02106382,82867.0,82866.0,0.38652184]
[1743453248063,0.0021685,82867.0,82866.0,0.38652184]
[1743453251465,0.0021685,82867.0,82866.0,0.5091257]
[1743453253068,0.0001685,82867.0,82866.0,0.5091257]
[1743453253479,0.0011685,82867.0,82866.0,0.5091257]
[1743453257300,0.62672,82875.0,82866.0,0.5091257]
[1743453257301,0.3452706,82875.0,82873.0,0.241333]
[1743453257447,0.3452706,82875.0,82874.0,0.00690042]
[1743453258587,0.241325,82876.0,82874.0,0.00690042]
[1743453258789,0.003,82875.0,82874.0,0.00690042]
[1743453259250,0.241325,82876.0,82874.0,0.24823042]
[1743453259474,0.241325,82876.0,82874.0,0.00690042]
[1743453259689,0.003,82875.0,82874.0,0.00690042]
[1743453260256,0.003,82875.0,82874.0,0.24823042]
[1743453260475,0.003,82875.0,82874.0,0.33123042]
[1743453260810,0.003,82875.0,82874.0,0.08990042]
[1743453261054,0.241325,82876.0,82874.0,0.08990042]
[1743453261292,0.242325,82876.0,82874.0,0.08990042]
[1743453261534,0.241327,82875.0,82874.0,0.08990042]
[1743453261983,0.012065,82884.0,82879.0,0.241315]
[1743453262215,0.241277,82893.0,82886.0,0.253359]
[1743453262478,0.24128,82891.0,82888.0,0.241287]
[1743453262712,0.26017225,82891.0,82888.0,0.241287]
[1743453262946,0.241284,82890.0,82889.0,0.00677966]
[1743453263422,0.241284,82890.0,82885.0,0.241297]
[1743453263423,0.24129,82888.0,82885.0,0.241297]
[1743453264632,0.241291,82889.0,82885.0,0.241297]
[1743453264818,0.241291,82889.0,82886.0,0.241294]
[1743453265025,0.002,82888.0,82886.0,0.241294]
[1743453265430,0.01827056,82888.0,82886.0,0.241294]
[1743453265648,0.241289,82888.0,82886.0,0.241294]
[1743453266329,0.241292,82887.0,82884.0,0.253365]
[1743453266542,0.241289,82888.0,82885.0,0.241297]
[1743453266747,0.255351,82889.0,82886.0,0.241293]
[1743453266915,0.243287,82889.0,82886.0,0.241293]
[1743453267110,0.241287,82889.0,82886.0,0.241293]
[1743453267468,0.241292,82887.0,82884.0,0.2413]
[1743453268091,0.241292,82887.0,82883.0,0.253363]
[1743453268547,0.241292,82887.0,82885.0,0.241298]
[1743453269182,0.001,82887.0,82885.0,0.241298]
[1743453269389,0.001,82887.0,82880.0,0.36391586]
[1743453269390,0.012064,82885.0,82880.0,0.36391586]
[1743453269564,0.001,82887.0,82880.0,0.37598086]
[1743453269774,0.2423,82887.0,82884.0,0.241301]
[1743453270413,0.2413,82887.0,82884.0,0.241301]
[1743453270634,0.2423,82887.0,82884.0,0.241301]
[1743453270866,0.001,82887.0,82885.0,0.241297]
[1743453271074,0.25800731,82888.0,82885.0,0.241297]
[1743453271257,0.241292,82887.0,82885.0,0.241297]
[1743453271466,0.242292,82887.0,82885.0,0.241297]
[1743453272049,0.241292,82887.0,82885.0,0.241297]
[1743453272486,0.241303,82884.0,82881.0,0.241308]
[1743453272735,0.241298,82885.0,82883.0,0.241303]
[1743453272955,0.241299,82885.0,82882.0,0.241306]
[1743453273163,0.241295,82886.0,82883.0,0.241301]
[1743453273391,0.253361,82887.0,82883.0,0.24812896]
[1743453273596,0.241295,82886.0,82884.0,0.2413]
[1743453273816,0.241297,82887.0,82884.0,0.2413]
[1743453273999,0.242297,82887.0,82885.0,0.00681186]
[1743453274408,0.241297,82887.0,82884.0,0.2413]
[1743453274616,0.241297,82887.0,82886.0,0.00680381]
[1743453274767,0.242297,82887.0,82885.0,0.00681186]
[1743453274980,0.242297,82887.0,82886.0,0.00680381]
[1743453275177,0.25800731,82888.0,82886.0,0.24809881]
[1743453275521,0.001,82887.0,82885.0,0.241297]
[1743453275726,0.242293,82887.0,82885.0,0.241297]
[1743453276918,0.001,82887.0,82886.0,0.241295]
[1743453277449,0.25800731,82888.0,82886.0,0.241295]
[1743453277699,0.01671831,82888.0,82887.0,0.241292]